Cogmind - Beta 12 @@@ ROGUE MODE // 2023.04.28 @ 16:16:42 Player: archydragon Result: Destroyed by Y-45 Defender with Beam Rifle Performance ------------- Evolutions (1) 500 Regions Visited (3) 600 Robots Destroyed (35) 175 Value Destroyed (948) 948 Prototype IDs (1) 20 Alien Tech Used (0) 0 Bonus (2) 2 TOTAL SCORE: 2245 Bonus ------- High Alert Combat Kills 2 Cogmind --------- Core Integrity 0/400 Matter 295/300 Energy 120/125 System Corruption 0% Temperature Cool (9) Movement Core (500) Ox9 Location -9/Materials Parts ------- > --- POWER (1) -------- Light Ion Engine > --- PROPULSION (2) --- (None) > --- UTILITY (4) ------ Huge Storage Unit Weight Redist. System Targeting Computer Targeting Computer > --- WEAPON (2) ------- Mace > --- INVENTORY (25) --- Medium Storage Unit Small Battery (100) Small Battery (100) Terrain Scanner Targeting Computer Medium Armor Plating Bomb Drone Bay Improved Medium Laser Rocket Launcher Mace Peak State ------------ > --- POWER ------------ Light Ion Engine > --- PROPULSION ------- (None) > --- UTILITY ---------- Medium Storage Unit Weight Redist. System Targeting Computer Targeting Computer > --- WEAPON ----------- Plasma Flamer Mace > --- INVENTORY -------- Small Battery Small Battery Targeting Computer Medium Armor Plating Bomb Drone Bay Improved Medium Laser Rocket Launcher Mace [Rating: 15] Favorites ----------- Power Ion Engine Engine Ion Engine Propulsion Aluminum Leg Leg Aluminum Leg Wheel Compact Wheel Flight Unit Flight Unit Utility Medium Storage Unit Device Weight Redist. System Storage Medium Storage Unit Processor Targeting Computer Protection Core Shielding Weapon Small Laser Energy Gun Small Laser Ballistic Gun Heavy Assault Rifle Ballistic Cannon Light Cannon Launcher Grenade Launcher Special Weapon Plasma Flamer Impact Weapon Mace Build | -11 -10 -10 -9 ------- Run | Jun Mat Min Mat Slots Evolved 2 | . . . 2 Power . | . . . . Propulsion . | . . . . Utility 2 | . . . 2 Weapon . | . . . . Parts Attached 34 | 6 10 1 17 Power 3 | 2 . . 1 Engine 3 | 2 . . 1 Core . | . . . . Reactor . | . . . . Propulsion 7 | 2 4 . 1 Treads . | . . . . Leg 5 | 2 2 . 1 Wheel 1 | . 1 . . Hover . | . . . . Flight 1 | . 1 . . Utility 10 | . 3 1 6 Device 1 | . . . 1 Storage 5 | . 2 . 3 Processor 3 | . 1 . 2 Hackware . | . . . . Protection 1 | . . 1 . Artifact . | . . . . Weapon 14 | 2 3 . 9 Energy Gun 6 | 2 2 . 2 Energy Cannon . | . . . . Ballistic Gun 1 | . . . 1 Ballistic Cannon 1 | . . . 1 Launcher 1 | . 1 . . Special Weapon 2 | . . . 2 Impact Weapon 3 | . . . 3 Slashing Weapon . | . . . . Piercing Weapon . | . . . . Special Melee Weapon . | . . . . Unidentified Prototypes . | . . . . Parts Lost 15 | . 2 . 13 Power 1 | . . . 1 Propulsion 4 | . 1 . 3 Utility 3 | . . . 3 Weapon 7 | . 1 . 6 Highest Loss Streak 7 | . 1 . 7 To Critical Strikes . | . . . . Average Slot Usage (%) 83 | . 89 100 72 Engine 10 | . 14 14 6 Leg 13 | . 13 28 6 Wheel 2 | . 8 . . Flight 1 | . 5 . . Device 2 | . . . 4 Storage 18 | . 16 14 21 Processor 7 | . 3 7 9 Protection 3 | . . 6 4 Energy Gun 16 | . 21 28 8 Ballistic Gun 1 | . . . 3 Launcher 1 | . 4 . . Special Weapon 1 | . . . 2 Impact Weapon 2 | . . . 4 Naked Turns . | . . . . Heaviest Build 88 | 7 21 18 88 Greatest Support 20 | 20 20 20 20 Greatest Overweight (x) 9 | . 4 . 9 Average Overweight (x) . | . 1 . 1 Largest Inventory Capacity 25 | 5 10 10 25 Average Capacity 9 | 5 8 10 10 Most Carried 11 | 3 5 8 11 Average Carried 5 | 2 2 4 8 Final Capacity 25 | 5 10 10 25 Final Carried 11 | 3 2 8 11 Class Distribution -------------------- 97% | Mutant Dominant Class ---------------- Mutant | -10/Materials Mutant | -10/Mines Mutant | -9/Materials Resources | -11 -10 -10 -9 ----------- Run | Jun Mat Min Mat Matter Collected 743 | 260 128 68 287 Remotely . | . . . . Salvage Created 1103 | 42 341 . 720 Parts 63 | 4 32 . 27 Haulers Intercepted . | . . . . Recyclers Shooed 1 | . 1 . . Parts Field Recycled . | . . . . Retrieved Matter . | . . . . Parts Self-Destructed . | . . . . Prevented . | . . . . Kills | -11 -10 -10 -9 ------- Run | Jun Mat Min Mat Combat Hostiles Destroyed 29 | 1 14 . 14 Guns 18 | 1 7 . 10 Cannons 3 | . . . 3 AOE 7 | . 7 . . Classes Destroyed 7 | 1 3 . 3 Worker 1 | . . . 1 Builder 2 | . 2 . . Recycler 1 | . . . 1 Watcher 2 | . 1 . 1 Swarmer 6 | . 6 . . Grunt 22 | 1 8 . 13 Sentry 1 | . . . 1 Best Kill Streak 9 | 1 9 . 5 Combat Bots Only 7 | 1 7 . 3 Max Kills in Single Turn 3 | 1 3 . 1 Gunslinging . | . . . . Exploded 2 | . 2 . . Melee . | . . . . Uniques/NPCs Destroyed . | . . . . Combat | -11 -10 -10 -9 -------- Run | Jun Mat Min Mat Damage Taken 1636 | 21 284 . 1331 Core 466 | 21 33 . 412 Absorbed by Shields . | . . . . Redirected to Shielding 32 | . . . 32 Core Remaining (%) 84 | 91 . 78 . Volleys Fired 97 | 2 29 . 66 Largest 2 | 2 2 . 2 Hottest 100 | 80 80 . 100 Shots Fired 155 | 4 54 . 97 Gun 130 | 4 41 . 85 Cannon 8 | . . . 8 Launcher 13 | . 13 . . Special 4 | . . . 4 Kinetic 32 | . . . 32 Thermal 110 | 4 41 . 65 Explosive 13 | . 13 . . Electromagnetic . | . . . . Robot Hit Streak 8 | 3 6 . 8 Robot Miss Streak 4 | . 2 . 4 Penetration Max . | . . . . Secondary Targets 1 | . . . 1 Max Gunslinging Chain 1 | . . . 1 Shots Hit Robots 101 | 3 30 . 68 Core Hits 61 | 2 31 . 28 Critical Kills . | . . . . Critical Parts Destroyed 1 | . . . 1 Critical Strikes 2 | . . . 2 Burn 1 | . . . 1 Smash 1 | . . . 1 Melee Attacks 14 | . . . 14 Impact 14 | . . . 14 Slashing . | . . . . Piercing . | . . . . Sneak Attacks 1 | . . . 1 Combat Hostiles . | . . . . Follow-up Attacks . | . . . . Damage Inflicted 2068 | 35 881 . 1152 Guns 941 | 35 231 . 675 Cannons 107 | . . . 107 Explosions 650 | . 650 . . Melee 305 | . . . 305 Ramming 14 | . . . 14 Kinetic 317 | . . . 317 Thermal 782 | 35 231 . 516 Explosive 650 | . 650 . . Electromagnetic . | . . . . Impact 305 | . . . 305 Slashing . | . . . . Piercing . | . . . . Highest Corruption . | . . . . Average Corruption . | . . . . Corruption Purged . | . . . . Corruption Blocked . | . . . . Overload Shots . | . . . . Overflow Damage 68 | . 8 . 60 Projectiles . | . . . . Explosions 8 | . 8 . . Melee 60 | . . . 60 Knockbacks 2 | . . . 2 Impact 1 | . . . 1 Kinetic 1 | . . . 1 Secondary . | . . . . Self-Inflicted Damage 5 | . . . 5 Shots . | . . . . Rammed 5 | . . . 5 Targets Rammed 5 | . . . 5 Kicked . | . . . . Crushed . | . . . . Highest Temperature 156 | 48 81 . 156 Average Temperature 36 | 28 30 . 42 Received Heat Transfer 828 | 12 108 . 708 Siege Activations . | . . . . Robots Corrupted . | . . . . Combat Hostiles . | . . . . Parts Fried 3 | . . . 3 Impact Corruptions 4 | . . . 4 Robots Melted . | . . . . Combat Hostiles . | . . . . Parts Melted 2 | . . . 2 Heat Transferred 2130 | 75 525 . 1530 Parts Sabotaged . | . . . . Parts Stolen . | . . . . Parts Stripped . | . . . . Power Chain Reactions . | . . . . Missiles Intercepted . | . . . . Alert | -11 -10 -10 -9 ------- Run | Jun Mat Min Mat Peak Influence 424 | 20 424 95 233 Initial 95 | . 13 95 . Average 136 | 7 285 91 82 Maximum Alert Level 2 | . 2 . 1 Low Security (%) 73 | 100 8 100 96 Level 1 20 | . 66 . 3 Level 2 6 | . 24 . . Level 3 . | . . . . Level 4 . | . . . . Level 5 . | . . . . High Security . | . . . . Max Security . | . . . . Squads Dispatched 7 | . 3 . 4 Investigation 6 | . 3 . 3 Extermination . | . . . . Reinforcement 1 | . . . 1 Assault . | . . . . Garrison . | . . . . Intercept . | . . . . Searches Triggered . | . . . . Construction Impeded . | . . . . Haulers Reinforced . | . . . . Active Scanning Responses . | . . . . Cargo Convoy Interrupts . | . . . . Stealth | -11 -10 -10 -9 --------- Run | Jun Mat Min Mat Distress Signals 2 | . . . 2 Communications Jammed . | . . . . Distress Signals . | . . . . Times Spotted 50 | 1 17 . 32 Peak Tracking Total 5 | 1 4 . 5 Tactical Retreats 1 | . . . 1 Traps | -11 -10 -10 -9 ------- Run | Jun Mat Min Mat Traps Triggered 1 | . . . 1 Indirectly . | . . . . Trap Hack Attempts . | . . . . Triggered . | . . . . Disarmed 4 | . 4 . . Reprogrammed . | . . . . Reused . | . . . . Traps Extracted . | . . . . Installed . | . . . . Triggered . | . . . . Machines | -11 -10 -10 -9 ---------- Run | Jun Mat Min Mat Machines Disabled 2 | . 1 . 1 Max in Single Turn 1 | . 1 . 1 Machines Repaired . | . . . . Machines Sabotaged . | . . . . Overloaded Fab Kills . | . . . . Hacking | -11 -10 -10 -9 --------- Run | Jun Mat Min Mat Machines Accessed 10 | . 4 2 4 Terminals 7 | . 4 1 2 Fabricators . | . . . . Repair Stations . | . . . . Recycling Units 1 | . . . 1 Scanalyzers 1 | . . . 1 Garrison Access . | . . . . Total Hacks 38 | . 17 2 19 Successful 21 | . 9 2 10 Failed 17 | . 8 . 9 Catastrophic 2 | . 1 . 1 Database Lockouts . | . . . . Manual . | . . . . Terminals 28 | . 17 1 10 Fabricators . | . . . . Repair Stations . | . . . . Recycling Units 5 | . . . 5 Scanalyzers 4 | . . . 4 Garrison Access . | . . . . Terminal Hacks 17 | . 9 2 6 Record 9 | . 5 . 4 Open Door 1 | . . 1 . Alert Level 2 | . 2 . . Unreport Threat 1 | . . . 1 Locate Traps 1 | . 1 . . Disarm Traps 1 | . 1 . . Dispatch Records 1 | . . 1 . Patrol Status 1 | . . . 1 Fabricator Hacks . | . . . . Repair Station Hacks . | . . . . Recycling Unit Hacks 3 | . . . 3 Process 1 | . . . 1 Report Inventory 1 | . . . 1 Retrieve Matter 1 | . . . 1 Scanalyzer 1 | . . . 1 Insert Component 1 | . . . 1 Garrison Access Hacks . | . . . . Unauthorized Hacks . | . . . . Terminals . | . . . . Fabricators . | . . . . Repair Stations . | . . . . Recycling Units . | . . . . Scanalyzers . | . . . . Garrison Access . | . . . . Data Cores Recovered . | . . . . Used . | . . . . Hacking Detections 8 | . 4 . 4 Full Trace Events 8 | . 4 . 4 Feedback Events . | . . . . Feedback Blocked . | . . . . Robot Schematics Acquired . | . . . . Robots Built . | . . . . Authchips . | . . . . Time . | . . . . Total Robot Build Rating . | . . . . Part Schematics Acquired . | . . . . Parts Built . | . . . . Authchips . | . . . . Time . | . . . . Total Part Build Rating . | . . . . Parts Repaired . | . . . . Time . | . . . . Parts Recycled . | . . . . Recycled Matter . | . . . . Retrieved Matter . | . . . . Retrieved Components . | . . . . Parts Scanalyzed 1 | . . . 1 Part Schematics Acquired . | . . . . Parts Damaged . | . . . . Bothacking | -11 -10 -10 -9 ------------ Run | Jun Mat Min Mat Used RIF Installer . | . . . . Robots Hacked . | . . . . Non-combat . | . . . . Combat . | . . . . Robot Hacks Applied . | . . . . Relay Couplers Released . | . . . . Fabnet Peak Effective % . | . . . . Robots Rewired . | . . . . Allies Hacked . | . . . . Hacks Repelled . | . . . . Allies | -11 -10 -10 -9 -------- Run | Jun Mat Min Mat Total Allies 1 | . . 1 . Largest Group 1 | . . 1 . Highest-Rated Group 31 | . . 31 . Highest-Rated Ally 31 | . . 31 . Total Orders . | . . . . Ally Attacks . | . . . . Total Damage . | . . . . Kills . | . . . . Allies Corrupted . | . . . . Allies Melted . | . . . . Intel | -11 -10 -10 -9 ------- Run | Jun Mat Min Mat Robot Analysis Total . | . . . . Derelict Logs Recovered 2 | . . 2 . Drone Launches . | . . . . Drone Recoveries . | . . . . Exploration | -11 -10 -10 -9 ------------- Run | Jun Mat Min Mat Turns Passed 1882 | 119 524 414 825 Spaces Moved 1072 | 93 245 338 396 Core 306 | 17 . . 289 Treads . | . . . . Legs 658 | 76 137 338 107 Wheels 57 | . 57 . . Hover . | . . . . Flight 51 | . 51 . . Fastest Speed 50 | 50 115 120 100 Average Speed 140 | 107 170 120 146 Slowest Speed 500 | 120 365 120 500 Overloaded Moves . | . . . . Propulsion Burnouts . | . . . . Robots Hopped . | . . . . Cave-ins Triggered . | . . . . Exploration Rate (%) 37 | 6 37 83 24 Regions Visited 3 Branch Regions 1 Pre-discovered Areas 1 | . . 1 . Known Exits Taken 2 | . 1 1 . Unknown Exits Taken 1 | 1 . . . Scrap Searched 1 | . . 1 . Spaces Dug . | . . . . Terrain Destroyed 77 | . 77 . . Melee . | . . . . Projectile . | . . . . AOE 77 | . 77 . . Terrain Rammed . | . . . . Walls Destroyed . | . . . . Machines Disabled . | . . . . Actions | -11 -10 -10 -9 --------- Run | Jun Mat Min Mat Total 1273 | 108 299 346 520 Wait . | . . . . Move 1069 | 92 244 337 396 Hop . | . . . . Pick Up 41 | 8 9 6 18 Fast Attach . | . . . . Attach 23 | 5 5 . 13 Detach 2 | . 1 . 1 Swap 11 | 1 5 1 4 Drop 9 | . 6 . 3 Fire 97 | 2 29 . 66 Melee 14 | . . . 14 Ram 5 | . . . 5 Kick . | . . . . Crush . | . . . . Escape Stasis . | . . . . Rewire 2 | . . 2 . Trap . | . . . . Miscellaneous . | . . . . Route ------- -11/Junkyard -10/Materials (discovered 2 exits: *Min x2) -10/Mines (discovered 2 exits: *Mat x2) -9/Materials (discovered 2 exits: [*Min] / [*Sto]) History --------- Turn | Location | Event 2 | -11/Junkyard | Met Revision 17 63 | -11/Junkyard | Discovered new exit (range 8) 120 | -11/Junkyard | Entered Materials 184 | -10/Materials | Discovered new exit (range 9) 193 | -10/Materials | Destroyed 7 combat bots 320 | -10/Materials | Build established: Mutant 421 | -10/Materials | Discovered new exit (range 15) 643 | -10/Materials | Identified exit to Mines 644 | -10/Materials | Entered Mines 670 | -10/Mines | Learned location of Zion (-7) 675 | -10/Mines | Received a Mining Laser from a helpful Derelict 865 | -10/Mines | Discovered new exit (range 8) 923 | -10/Mines | A weapon hastily lodged in a ceiling crevice suddenly fell to the ground 983 | -10/Mines | Found the Drone Emporium 987 | -10/Mines | Identified exit to Materials 990 | -10/Mines | Found Prototype Device 1058 | -10/Mines | Entered Materials 1058 | -9/Materials | Evolved 2 slots: Utility x2 1373 | -9/Materials | Core integrity fell below 50% 1422 | -9/Materials | Lost 7 parts (1n2u4w) 1456 | -9/Materials | Discovered new exit (range 8) 1617 | -9/Materials | Discovered new exit (range 4) 1676 | -9/Materials | Core integrity fell below 20% 1883 | -9/Materials | Destroyed by Y-45 Defender with Beam Rifle Last Messages --------------- [Achievement: Everything Is Under Control] >>Alert(Purge) Purged threat record, alert level lowered. >>Enumerate(Patrols) Retrieving latest reported positions... Found 4 active patrol squads. Downloaded coordinate data. Sneak attack on K-01 Serf. Destroyed Lgt. Ion Engine. K-01 Serf system corrupted by crushing effect. K-01 Serf system terminally corrupted. Wheel fried. K-01 Serf collects debris. Acquired 48 matter. W-16 Scout sends out distress signal. Dropped Mace. Acquired Huge Storage Unit. Acquired Mace. Plasma Flamer destroyed. [Achievement: First Step to Greatness] Map ----- +----------------------------------------------------+ | ?????????????????????????????????????????????????? | | ?????????????????????????????????????????????????? | | ?????????????????????????????????????????????????? | | ?????????????????????????????????????????????????? | | ?????????????????????????????????????????????????? | | ?????????????????????????????????????????????????? | | ?????????????????????????????????????????????????? | | ?????????????????????????????????????????????????? | | ?????????????????????????????????????????????????? | | ?????????????????????????????????????????????????? | | ?????????????????????????????????????????????????? | | ?????????????????????????????????????????????????? | | ?????????????????????????????????????????????????? | | ?????????????????????????????????????????????????? | | ?????????????????????????????????????????????????? | | ?????????????????????????????????????????????????? | | ?????????????????????????????????????????????????? | | ?????????????????????????????????????????????????? | | ?????????????????????????????????????????????????? | | ?????????????????????????????????????????????????? | | ?????????????????#?????#######???????????????????? | | ??????????????+### ????# #???????????????????? | | ??????????????? ???#"" #???????? ????????? | | ???????????????? T??#"T #???????# #???????? | | ?????????????????? ?#"" #???????+ /???????? | | ???????????????????? # @ #???????# #???????? | | ?????????????????????# ##Y####?????### ##??????? | | ?????????????????????# ######" #??????? | | ?????????????????????# # #"" #??????? | | ?????????????????????# # #|| #??????? | | ????????????????????##+##+## # #"" < #??????? | | ????????????????????# # # #|| #??????? | | ????????????????????#""" # # #"" #??????? | | ????????????????????#""" + + #? #??????? | | ????????????????????#""" # # #??# #???????? | | ????????????????????# # ######### #???????? | | ????????????????????#""" # ######### | | ????????????????????#""" + % % | | ????????????????????#""" # / ########% | | ????????????????????# ## / #####??????#% | | ????????????????????#""" ## % #??????????# | | ????????????????????#""" ## ###????????# | | ????????????????????#""" ## ""#????????# | | ????????????????????# ## T"#????????#% | | ????????????????????##### ### ""#????????# | | ????????????????????????##??# ###????????# | | ????????????????????????????# "" #??????????# | | ????????????????????????????# """ #?#######??# | | ???????########?????????????# """ #?# #### | | ???????# #?????????????# % """ #?# % | +----------------------------------------------------+ Best States ------------- Heat Dissipation 28 Energy Generation 10 Energy Capacity 450 Matter Stores 400 Matter Capacity 400 Sight Range 16 Terrain Scan Density 10 Additional Mass Support 6 Core Shielding 20 Evasion (%) 55 Targeting Accuracy 10 Item Schematics ----------------- None Robot Schematics ------------------ None Fabricated ------------ Nothing Alien Tech Used ----------------- None Achievements -------------- Everything Is Under Control First Step to Greatness Novice Programmer One Hack Too Far Safety First Uninvited Guest Challenges ------------ None Game ------ Seed DataDeepNetwork Manual? 0 Play Time 00:45:11 Cumulative 1.4 hours Start 2023.04.28 @ 15:27:31 End 2023.04.28 @ 16:16:42 Sessions 1 Manual Loads 0 Difficulty Rogue Special Mode None Game No. 1 Rogue 1 Adventurer 0 Explorer 0 Win Type - Total 0 Types 0/0/0/0/0/0/0/0/0 Lore% 1 Gallery% 2 Achievement% 2 Wizard Run 0 Options --------- ASCII 0 Keyboard 1 Movement Arrows Keybinds 0 Fullscreen 2 Font 24/Terminus Map View 76x50 Tactical HUD 0 Map Filters NONE Filters NONE Steam 1 RUN: aaeea327-6d65-4075-ada2-faff611d7e53